fUSD/lending_fUSD_20240222
["ID","MTS","AMOUNT","RATE_DAILY","PERIOD"]
[314874340,1708605058279,-500.0,0.00033424,4]
[314874341,1708605058288,-900.33,0.00033424,4]
[314874342,1708605058297,-500.0,0.00033424,4]
[314874343,1708605058306,-13085.58,0.00033424,4]
[314874344,1708605058315,-904.07,0.00033424,4]
[314874345,1708605058323,-500.0,0.00033424,4]
[314874346,1708605058333,-500.0,0.00033424,4]
[314874347,1708605058342,-639.74,0.00033424,4]
[314874348,1708605058351,-692.93,0.00033424,4]
[314874349,1708605058360,-1560.71,0.00033424,4]
[314874350,1708605058370,-500.0,0.00033424,4]
[314874351,1708605058378,-500.0,0.00033424,4]
[314874352,1708605058387,-8110.16,0.00033424,4]
[314874353,1708605058396,-500.0,0.00033424,4]
[314874354,1708605058405,-330.88622024,0.00033424,4]
[314874355,1708605058414,-943.68,0.00033424,4]
[314874356,1708605058423,-959.58,0.00033424,4]
[314874357,1708605058432,-500.0,0.00033424,4]
[314874358,1708605058441,-500.0,0.00033424,4]
[314874359,1708605058450,-500.0,0.00033424,4]
[314874360,1708605058459,-1228.15,0.00033424,4]
[314874361,1708605058468,-1108.93,0.00033424,4]
[314874362,1708605058477,-2804.44,0.00033424,4]
[314874363,1708605058486,-6890.18,0.00033424,4]
[314874364,1708605058496,-996.16,0.00033424,4]
[314874365,1708605058505,-500.0,0.00033424,4]
[314874366,1708605058514,-7770.02,0.00033424,4]
[314874367,1708605058524,-715.76,0.00033424,4]
[314874368,1708605058534,-500.0,0.00033424,4]
[314874369,1708605058543,-5957.17,0.00033424,4]
[314874370,1708605058553,-500.0,0.00033424,4]
[314874371,1708605058562,-500.0,0.00033424,4]
[314874372,1708605058571,-1454.44,0.00033424,4]
[314874373,1708605058581,-1413.34,0.00033424,4]
[314874374,1708605058590,-500.0,0.00033424,4]
[314874375,1708605058602,-2680.78,0.00033424,4]
[314874376,1708605058611,-802.17,0.00033424,4]
[314874377,1708605058620,-674.66,0.00033424,4]
[314874378,1708605058629,-8515.98,0.00033424,4]
[314874379,1708605058638,-547.27,0.00033424,4]
[314874380,1708605058650,-2093.0,0.00033424,4]
[314874381,1708605058659,-758.92,0.00033424,4]
[314874382,1708605058668,-500.0,0.00033424,4]
[314874383,1708605058676,-500.0,0.00033424,4]
[314874384,1708605058687,-589.46,0.00033424,4]
[314874385,1708605058696,-913.74,0.00033424,4]
[314874386,1708605058705,-500.0,0.00033424,4]
[314874387,1708605058714,-548.21,0.00033424,4]
[314874388,1708605058724,-3446.52,0.00033424,4]
[314874389,1708605058733,-3716.15,0.00033424,4]
[314874390,1708605058742,-500.0,0.00033424,4]
[314874391,1708605058751,-1289.6,0.00033424,4]
[314874392,1708605058761,-1774.96,0.00033424,4]
[314874393,1708605058770,-500.0,0.00033424,4]
[314874394,1708605058780,-559.69,0.00033424,4]
[314874395,1708605058788,-1177.27,0.00033424,4]
[314874396,1708605058797,-3513.37,0.00033424,4]
[314874397,1708605058806,-799.57,0.00033424,4]
[314874398,1708605058815,-1631.26,0.00033424,4]
[314874399,1708605058824,-500.0,0.00033424,4]
[314874400,1708605058833,-500.0,0.00033424,4]
[314874401,1708605058843,-500.0,0.00033424,4]
[314874402,1708605058854,-1271.81,0.00033424,4]
[314874403,1708605058865,-560.4363477,0.00033424,4]
[314874404,1708605058875,-16009.77,0.00033424,4]
[314874405,1708605058884,-2043.21,0.00033424,4]
[314874406,1708605058895,-1275.56,0.00033424,4]
[314874407,1708605058905,-500.0,0.00033424,4]
[314874408,1708605058915,-1687.82,0.00033424,4]
[314874409,1708605058924,-500.0,0.00033424,4]
[314874410,1708605058933,-500.0,0.00033424,4]
[314874411,1708605058942,-861.28,0.00033424,4]
[314874412,1708605058950,-1798.41,0.00033424,4]
[314874413,1708605058959,-866.78,0.00033424,4]
[314874414,1708605058968,-687.84,0.00033424,4]
[314874415,1708605058977,-702.3,0.00033424,4]
[314874416,1708605058986,-686.04,0.00033424,4]
[314874417,1708605058995,-1310.46,0.00033424,4]
[314874418,1708605059004,-1146.27,0.00033424,4]
[314874419,1708605059014,-2092.9,0.00033424,4]
[314874420,1708605059024,-1592.92,0.00033424,4]
[314874421,1708605059032,-847.68,0.00033424,4]
[314874422,1708605059041,-500.0,0.00033424,4]
[314874423,1708605059050,-873.77,0.00033424,4]
[314874424,1708605059059,-601.97,0.00033424,4]
[314874425,1708605059068,-834.33,0.00033424,4]
[314874426,1708605059076,-689.26,0.00033424,4]
[314874427,1708605059085,-500.0,0.00033424,4]
[314874428,1708605059094,-3896.0,0.00033424,4]
[314874429,1708605059103,-500.0,0.00033424,4]
[314874430,1708605059112,-1337.74,0.00033424,4]
[314874431,1708605059121,-619.82,0.00033424,4]
[314874432,1708605059130,-2617.07,0.00033424,4]
[314874433,1708605059139,-1185.31,0.00033424,4]
[314874434,1708605059148,-2178.92,0.00033424,4]
[314874435,1708605059156,-1187.74,0.00033424,4]
[314874436,1708605059165,-500.0,0.00033424,4]
[314874437,1708605059174,-633.55,0.00033424,4]
[314874438,1708605059183,-2190.87,0.00033424,4]
[314874439,1708605059192,-2111.44,0.00033424,4]
[314874440,1708605059201,-602.64,0.00033424,4]
[314874441,1708605059210,-898.03,0.00033424,4]
[314874442,1708605059219,-584.08,0.00033424,4]
[314874443,1708605059228,-4335.03,0.00033424,4]
[314874444,1708605059237,-1315.85,0.00033424,4]
[314874445,1708605059246,-1713.79,0.00033424,4]
[314874446,1708605059255,-885.21,0.00033424,4]
[314874447,1708605059264,-777.44,0.00033424,4]
[314874448,1708605059274,-10920.58,0.00033424,4]
[314874449,1708605059283,-500.0,0.00033424,4]
[314874450,1708605059292,-756.3,0.00033424,4]
[314874451,1708605059301,-1493.9,0.00033424,4]
[314874452,1708605059311,-1274.89,0.00033424,4]
[314874453,1708605059320,-500.0,0.00033424,4]
[314874454,1708605059329,-500.0,0.00033424,4]
[314874455,1708605059339,-6672.64,0.00033424,4]
[314874456,1708605059348,-500.0,0.00033424,4]
[314874457,1708605059359,-2178.74,0.00033424,4]
[314874458,1708605059368,-500.0,0.00033424,4]
[314874459,1708605059378,-2569.07,0.00033424,4]
[314874460,1708605059387,-550.27,0.00033424,4]
[314874461,1708605059396,-1428.56,0.00033424,4]
[314874462,1708605059405,-518.96097173,0.00033424,4]
[314874463,1708605059414,-558.19,0.00033424,4]
[314874464,1708605059424,-6844.32,0.00033424,4]
[314874465,1708605059433,-573.44,0.00033424,4]
[314874466,1708605059443,-1091.56,0.00033424,4]
[314874467,1708605059452,-5762.85,0.00033424,4]
[314874468,1708605059462,-3005.02,0.00033424,4]
[314874469,1708605059472,-500.0,0.00033424,4]
[314874470,1708605059481,-1544.49,0.00033424,4]
[314874471,1708605059491,-500.0,0.00033424,2]
[314874472,1708605059501,-755.13,0.00033424,4]
[314874473,1708605059510,-2918.3,0.00033424,4]
[314874474,1708605059520,-500.0,0.00033424,4]
[314874475,1708605059530,-500.0,0.00033424,4]
[314874476,1708605059540,-845.02,0.00033424,4]
[314874477,1708605059549,-1276.67,0.00033424,4]
[314874478,1708605059559,-1508.96,0.00033424,4]
[314874479,1708605059568,-3127.03,0.00033424,4]
[314874480,1708605059577,-500.0,0.00033424,4]
[314874481,1708605059586,-676.78,0.00033424,4]
[314874482,1708605059595,-686.67,0.00033424,4]
[314874483,1708605059605,-986.43,0.00033424,4]
[314874484,1708605059614,-7316.14,0.00033424,4]
[314874485,1708605059624,-1518.65,0.00033424,4]
[314874486,1708605059633,-3350.24,0.00033424,4]
[314874487,1708605059642,-500.0,0.00033424,4]
[314874488,1708605059653,-500.0,0.00033424,4]
[314874489,1708605059662,-500.0,0.00033424,4]
[314874490,1708605059671,-1195.61,0.00033424,4]
[314874491,1708605059680,-4294.7,0.00033424,4]
[314874492,1708605059690,-733.56,0.00033424,4]
[314874493,1708605059700,-502.55240275,0.00033424,4]
[314874494,1708605059709,-196.53364356,0.00033424,4]
[314874495,1708605059718,-3597.34,0.00033424,4]
[314874496,1708605059728,-1126.48,0.00033424,4]
[314874497,1708605059738,-500.0,0.00033424,4]
[314874498,1708605059747,-500.0,0.00033424,4]
[314874499,1708605059756,-1261.6,0.00033424,4]
[314874500,1708605059766,-930.39,0.00033424,4]
[314874501,1708605059776,-833.97,0.00033424,4]
[314874502,1708605059785,-728.46,0.00033424,4]
[314874503,1708605059794,-1065.6,0.00033424,4]
[314874504,1708605059803,-5269.02,0.00033424,4]
[314874505,1708605059812,-1216.42,0.00033424,4]
[314874506,1708605059821,-666.81,0.00033424,4]
[314874507,1708605059831,-725.69,0.00033424,4]
[314874508,1708605059840,-562.86711434,0.00033424,4]
[314874509,1708605059849,-649.26,0.00033424,4]
[314874510,1708605059858,-1897.03,0.00033424,4]
[314874511,1708605059868,-1114.56,0.00033424,4]
[314874512,1708605059878,-500.0,0.00033424,4]
[314874513,1708605059889,-769.83,0.00033424,4]
[314874514,1708605059898,-500.0,0.00033424,4]
[314874515,1708605059907,-1604.53,0.00033424,4]
[314874516,1708605059917,-16240.41,0.00033424,4]
[314874517,1708605059927,-853.73,0.00033424,4]
[314874518,1708605059936,-1059.18,0.00033424,4]
[314874519,1708605059945,-636.12,0.00033424,4]
[314874520,1708605059954,-10010.34,0.00033424,4]
[314874521,1708605059963,-500.0,0.00033424,4]
[314874522,1708605059973,-500.0,0.00033424,4]
[314874523,1708605059982,-2353.34,0.00033424,4]
[314874524,1708605059992,-2230.62,0.00033424,4]
[314874525,1708605060002,-1238.83,0.00033424,4]
[314874526,1708605060012,-570.23,0.00033424,4]
[314874527,1708605060022,-500.0,0.00033424,4]
[314874528,1708605060032,-500.0,0.00033424,4]
[314874529,1708605060042,-1323.27,0.00033424,4]
[314874530,1708605060052,-500.0,0.00033424,4]
[314874531,1708605060062,-500.0,0.00033424,4]
[314874532,1708605060072,-500.0,0.00033424,4]
[314874533,1708605060082,-1311.92,0.00033424,4]
[314874534,1708605060091,-800.38,0.00033424,4]
[314874535,1708605060100,-1446.03,0.00033424,4]
[314874536,1708605060109,-5292.13,0.00033424,4]
[314874537,1708605060119,-500.0,0.00033424,4]
[314874538,1708605060127,-385.26252859,0.00033424,4]
[314874539,1708605060136,-2332.82,0.00033424,4]
[314874540,1708605060145,-1151.29,0.00033424,4]
[314874541,1708605060154,-500.0,0.00033424,4]
[314874542,1708605060163,-500.0,0.00033424,4]
[314874543,1708605060253,-1231.8,0.00033424,4]
[314874544,1708605060297,-500.0,0.00033424,4]
[314874545,1708605060306,-1200.32,0.00033424,4]
[314874546,1708605060315,-500.0,0.00033424,4]
[314874547,1708605060325,-1105.8,0.00033424,4]
[314874548,1708605060335,-500.0,0.00033424,4]
[314874549,1708605060344,-6650.75,0.00033424,4]
[314874550,1708605060354,-500.0,0.00033424,2]
[314874551,1708605060363,-500.0,0.00033424,4]
[314874552,1708605060373,-564.28,0.00033424,4]
[314874553,1708605060381,-3183.06,0.00033424,4]
[314874554,1708605060391,-500.0,0.00033424,4]
[314874555,1708605060400,-1402.79,0.00033424,4]
[314874556,1708605060409,-352.0,0.00033425,2]
[314874557,1708605060418,-18457.8170773,0.0003343,2]
[314874558,1708605060427,-32939.979009,0.0003343,2]
[314874559,1708605060437,-760.13,0.00033432,2]
[314874560,1708605060447,-640.73,0.00033445,2]
[314874561,1708605060456,-170.75,0.00033484,2]
[314874562,1708605060466,-511.47,0.00033492,4]
[314874563,1708605060475,-313065.08049776,0.00033493,2]
[314874564,1708605060484,-30487.14099003,0.000335,2]
[314874565,1708605060494,-397.55733628,0.000335,2]
[314874566,1708605060503,-944.9109678,0.000335,5]
[314874567,1708605060512,-1257.68766402,0.00033562,2]
[314874568,1708605060521,-233.45391699,0.00033598,2]
[314874569,1708605060533,-21861.0,0.000336,3]
[314874570,1708605060542,-760.13,0.00033602,2]
[314874571,1708605060551,-1456.0357763,0.00033613,2]
[314874572,1708605060561,-170.75,0.00033648,2]
[314874573,1708605060570,-944.9109678,0.0003365,5]
[314874574,1708605060580,-589.79662284,0.00033668,22]
[314874575,1708605060589,-150.0,0.00033682,2]
[314874576,1708605060598,-158.0,0.00033689,5]
[314874577,1708605060608,-511.47,0.00033697,4]
[314874578,1708605060617,-511.47,0.00033697,4]
[314874579,1708605060629,-511.47,0.00033697,4]
[314874580,1708605060662,-865.92,0.00033698,4]
[314874581,1708605060672,-500.0,0.00033698,4]
[314874582,1708605060681,-500.0,0.00033698,4]
[314874583,1708605060691,-500.0,0.00033698,4]
[314874584,1708605060700,-877.74,0.00033698,4]
[314874585,1708605060709,-500.0,0.00033698,4]
[314874586,1708605060719,-500.0,0.00033698,4]
[314874587,1708605060728,-500.0,0.00033698,4]
[314874588,1708605060737,-500.0,0.00033698,4]
[314874589,1708605060746,-500.0,0.00033698,4]
[314874590,1708605060756,-500.0,0.00033698,4]
[314874591,1708605060766,-360.81866198,0.00033698,4]
[314874592,1708605060777,-500.0,0.00033698,4]
[314874593,1708605060787,-342.952453,0.00033698,4]
[314874594,1708605060797,-500.0,0.00033698,4]
[314874595,1708605060806,-500.0,0.00033698,4]
[314874596,1708605060815,-500.0,0.00033698,4]
[314874597,1708605060825,-500.0,0.00033698,4]
[314874598,1708605060834,-500.0,0.00033698,4]
[314874599,1708605060843,-500.0,0.00033698,4]
[314874600,1708605060852,-561.14,0.00033698,4]
[314874601,1708605060861,-500.0,0.00033698,4]
[314874602,1708605060871,-500.26874713,0.00033698,4]
[314874603,1708605060880,-500.0,0.00033698,4]
[314874604,1708605060889,-500.0,0.00033698,4]
[314874605,1708605060899,-500.0,0.00033698,4]
[314874606,1708605060908,-500.0,0.00033698,4]
[314874607,1708605060917,-500.0,0.00033698,4]
[314874608,1708605060926,-500.0,0.00033698,4]
[314874609,1708605060936,-500.0,0.00033698,4]
[314874610,1708605060946,-500.0,0.00033698,4]
[314874611,1708605060955,-500.0,0.00033698,4]
[314874612,1708605060964,-502.17,0.00033698,4]
[314874613,1708605060974,-500.0,0.00033698,4]
[314874614,1708605060983,-519.75,0.00033698,4]
[314874615,1708605060992,-500.0,0.00033698,4]
[314874616,1708605061001,-500.0,0.00033698,4]
[314874617,1708605061011,-500.0,0.00033698,4]
[314874618,1708605061020,-500.0,0.00033698,4]
[314874619,1708605061030,-500.0,0.00033698,4]
[314874620,1708605061039,-500.0,0.00033698,4]
[314874621,1708605061049,-500.0,0.00033698,4]
[314874622,1708605061058,-500.0,0.00033698,4]
[314874623,1708605061067,-505.66,0.00033698,4]
[314874624,1708605061077,-500.0,0.00033698,4]
[314874625,1708605061086,-500.0,0.00033698,4]
[314874626,1708605061095,-500.0,0.00033698,4]
[314874627,1708605061104,-500.0,0.00033698,4]
[314874628,1708605061113,-500.0,0.00033698,4]
[314874629,1708605061123,-500.0,0.00033698,4]
[314874630,1708605061132,-545.46552163,0.00033698,4]
[314874631,1708605061141,-500.0,0.00033698,4]
[314874632,1708605061150,-500.0,0.00033698,4]
[314874633,1708605061159,-350.64102392,0.00033698,4]
[314874634,1708605061168,-500.0,0.00033698,4]
[314874635,1708605061177,-500.0,0.00033698,4]
[314874636,1708605061186,-1249.16,0.00033698,4]
[314874637,1708605061196,-500.0,0.00033698,4]
[314874638,1708605061205,-500.0,0.00033698,4]
[314874639,1708605061213,-500.0,0.00033698,4]
[314874640,1708605061223,-500.0,0.00033698,4]
[314874641,1708605061232,-500.0,0.00033698,4]
[314874642,1708605061241,-500.0,0.00033698,4]
[314874643,1708605061250,-500.0,0.00033698,4]
[314874644,1708605061259,-500.0,0.00033698,4]
[314874645,1708605061268,-500.0,0.00033698,4]
[314874646,1708605061277,-500.0,0.00033698,4]
[314874647,1708605061286,-500.0,0.00033698,4]
[314874648,1708605061295,-500.0,0.00033698,4]
[314874649,1708605061305,-500.0,0.00033698,4]
[314874650,1708605061314,-500.0,0.00033698,4]
[314874651,1708605061323,-500.0,0.00033698,4]
[314874652,1708605061332,-500.0,0.00033698,4]
[314874653,1708605061341,-500.0,0.00033698,4]
[314874654,1708605061351,-500.0,0.00033698,4]
[314874655,1708605061361,-500.0,0.00033698,4]
[314874656,1708605061370,-500.0,0.00033698,4]
[314874657,1708605061380,-500.0,0.00033698,4]
[314874658,1708605061389,-500.0,0.00033698,4]
[314874659,1708605061399,-411.37933528,0.00033698,4]
[314874660,1708605061409,-500.0,0.00033698,4]
[314874661,1708605061418,-500.0,0.00033698,4]
[314874662,1708605061427,-500.0,0.00033698,4]
[314874663,1708605061437,-500.0,0.00033698,4]
[314874664,1708605061446,-463.13913536,0.00033698,4]
[314874665,1708605061456,-500.0,0.00033698,4]
[314874666,1708605061466,-500.0,0.00033698,4]
[314874667,1708605061475,-500.0,0.00033698,4]
[314874668,1708605061485,-500.0,0.00033698,4]
[314874669,1708605061496,-518.9105739,0.00033698,4]
[314874670,1708605061505,-500.0,0.00033698,4]
[314874671,1708605061514,-500.0,0.00033698,4]
[314874672,1708605061524,-500.0,0.00033698,4]
[314874673,1708605061534,-500.0,0.00033698,4]
[314874674,1708605061543,-814.32,0.00033698,4]
[314874675,1708605061552,-467.43866437,0.00033698,4]
[314874676,1708605061562,-500.0,0.00033698,4]
[314874677,1708605061571,-500.0,0.00033698,4]
[314874678,1708605061581,-500.0,0.00033698,4]
[314874679,1708605061590,-943.02,0.00033698,4]
[314874680,1708605061601,-1401.66,0.00033698,4]
[314874681,1708605061610,-500.0,0.00033698,4]
[314874682,1708605061620,-500.0,0.00033698,4]
[314874683,1708605061630,-870.87,0.00033698,4]
[314874684,1708605061639,-500.0,0.00033698,4]
[314874685,1708605061649,-500.0,0.00033698,4]
[314874686,1708605061659,-500.0,0.00033698,4]
[314874687,1708605061669,-500.0,0.00033698,4]
[314874688,1708605061678,-896.69,0.00033698,4]
[314874689,1708605061687,-850.8,0.00033698,4]
[314874690,1708605061697,-500.0,0.00033698,4]
[314874691,1708605061706,-500.0,0.00033698,4]
[314874692,1708605061716,-500.0,0.00033698,4]
[314874693,1708605061725,-500.0,0.00033698,4]
[314874694,1708605061736,-500.0,0.00033698,4]
[314874695,1708605061747,-500.0,0.00033698,4]
[314874696,1708605061756,-500.0,0.00033698,4]
[314874697,1708605061765,-500.0,0.00033698,4]
[314874698,1708605061774,-500.0,0.00033698,4]
[314874699,1708605061784,-500.0,0.00033698,4]
[314874700,1708605061793,-669.5,0.00033698,4]
[314874701,1708605061802,-508.78,0.00033698,4]
[314874702,1708605061811,-500.0,0.00033698,4]
[314874703,1708605061821,-500.0,0.00033698,4]
[314874704,1708605061830,-500.0,0.00033698,4]
[314874705,1708605061840,-501.83,0.00033698,4]
[314874706,1708605061849,-500.0,0.00033698,4]
[314874707,1708605061858,-513.36,0.00033698,4]
[314874708,1708605061868,-770.16,0.00033698,4]
[314874709,1708605061878,-703.37,0.00033698,4]
[314874710,1708605061887,-500.0,0.00033698,4]
[314874711,1708605061897,-500.0,0.00033698,4]
[314874712,1708605061906,-578.84544286,0.00033698,4]
[314874713,1708605061916,-500.0,0.00033698,4]
[314874714,1708605061925,-1026.24,0.00033698,4]
[314874715,1708605061935,-585.77,0.00033698,4]
[314874716,1708605061945,-500.0,0.00033698,4]
[314874717,1708605061955,-545.08,0.00033698,4]
[314874718,1708605061964,-453.21948346,0.00033698,4]
[314874719,1708605061974,-500.0,0.00033698,4]
[314874720,1708605061983,-168.47753293,0.00033698,4]
[314874721,1708605061992,-1000.0,0.00033698,7]
[314874722,1708605062002,-500.0,0.00033698,4]
[314874723,1708605062011,-524.14,0.00033698,4]
[314874724,1708605062020,-631.87,0.00033698,4]
[314874725,1708605062030,-500.0,0.00033698,4]
[314874726,1708605062039,-500.0,0.00033698,4]
[314874727,1708605062049,-849.89,0.00033698,4]
[314874728,1708605062058,-500.0,0.00033698,4]
[314874729,1708605062067,-500.0,0.00033698,4]
[314874730,1708605062077,-500.0,0.00033698,4]
[314874731,1708605062086,-500.0,0.00033698,4]
[314874732,1708605062095,-564.45,0.00033698,4]
[314874733,1708605062105,-746.43,0.00033698,4]
[314874734,1708605062114,-500.0,0.00033698,4]
[314874735,1708605062125,-500.0,0.00033698,4]
[314874736,1708605062135,-605.04,0.00033698,4]
[314874737,1708605062144,-500.0,0.00033698,4]
[314874738,1708605062154,-500.0,0.00033698,4]
[314874739,1708605062163,-500.0,0.00033698,4]
[314874740,1708605062172,-665.65,0.00033698,4]
[314874741,1708605062182,-751.06,0.00033698,4]
[314874742,1708605062191,-500.0,0.00033698,4]
[314874743,1708605062202,-702.56,0.00033698,4]
[314874744,1708605062212,-500.0,0.00033698,4]
[314874745,1708605062223,-500.0,0.00033698,4]
[314874746,1708605062233,-528.54,0.00033698,4]
[314874747,1708605062242,-500.0,0.00033698,4]
[314874748,1708605062252,-556.73,0.00033698,4]
[314874749,1708605062261,-500.0,0.00033698,4]
[314874750,1708605062271,-500.0,0.00033698,4]
[314874751,1708605062283,-552.29,0.00033698,4]
[314874752,1708605062293,-500.0,0.00033698,4]
[314874753,1708605062302,-784.94,0.00033698,4]
[314874754,1708605062312,-500.0,0.00033698,4]
[314874755,1708605062322,-646.21,0.00033698,4]
[314874756,1708605062331,-705.65,0.00033698,4]
[314874757,1708605062340,-500.0,0.00033698,4]
[314874758,1708605062350,-731.6,0.00033698,4]
[314874759,1708605062359,-500.0,0.00033698,4]
[314874760,1708605062368,-698.42,0.00033698,4]
[314874761,1708605062676,-737.08,0.00033698,4]
[314874762,1708605062691,-500.0,0.00033698,4]
[314874763,1708605062704,-704.7,0.00033698,4]
[314874764,1708605062721,-500.0,0.00033698,4]
[314874765,1708605062732,-500.0,0.00033698,4]
[314874766,1708605062742,-500.0,0.00033698,4]
[314874767,1708605062751,-687.38,0.00033698,4]
[314874768,1708605062761,-580.54,0.00033698,4]
[314874769,1708605062770,-500.0,0.00033698,4]
[314874770,1708605062781,-1013.62,0.00033698,4]
[314874771,1708605062790,-500.0,0.00033698,4]
[314874772,1708605062799,-500.0,0.00033698,4]
[314874773,1708605062809,-500.0,0.00033698,4]
[314874774,1708605062818,-500.0,0.00033698,4]
[314874775,1708605062827,-500.0,0.00033698,2]
[314874776,1708605062837,-518.66,0.00033698,4]
[314874777,1708605062846,-1079.18,0.00033698,4]
[314874778,1708605062856,-619.18,0.00033698,4]
[314874779,1708605062866,-500.0,0.00033698,4]
[314874780,1708605062876,-500.0,0.00033698,4]
[314874781,1708605062885,-500.0,0.00033698,4]
[314874782,1708605062894,-500.0,0.00033698,4]
[314874783,1708605062903,-500.0,0.00033698,2]
[314874784,1708605062913,-769.76,0.00033698,4]
[314874785,1708605062922,-1007.23,0.00033698,4]
[314874786,1708605062932,-500.0,0.00033698,4]
[314874787,1708605062941,-500.0,0.00033698,4]
[314874788,1708605062950,-500.0,0.00033698,4]
[314874789,1708605062960,-546.60268933,0.00033698,4]
[314874790,1708605062970,-700.11,0.00033698,4]
[314874791,1708605062979,-502.21,0.00033698,4]
[314874792,1708605062989,-500.0,0.00033698,4]
[314874793,1708605062998,-500.0,0.00033698,4]
[314874794,1708605063007,-500.0,0.00033698,2]
[314874795,1708605063017,-500.0,0.00033698,4]
[314874796,1708605063026,-535.61,0.00033698,4]
[314874797,1708605063036,-500.0,0.00033698,4]
[314874798,1708605063046,-632.36,0.00033698,4]
[314874799,1708605063055,-684.6,0.00033698,4]
[314874800,1708605063065,-500.0,0.00033698,4]
[314874801,1708605063074,-500.0,0.00033698,4]
[314874802,1708605063085,-500.0,0.00033698,4]
[314874803,1708605063095,-500.0,0.00033698,4]
[314874804,1708605063106,-500.0,0.00033698,4]
[314874805,1708605063115,-500.0,0.00033698,2]
[314874806,1708605063124,-724.72,0.00033698,4]
[314874807,1708605063133,-607.82,0.00033698,4]
[314874808,1708605063142,-597.9,0.00033698,4]
[314874809,1708605063152,-500.0,0.00033698,2]
[314874810,1708605063161,-882.95,0.00033698,4]
[314874811,1708605063170,-500.0,0.00033698,4]
[314874812,1708605063180,-500.0,0.00033698,4]
[314874813,1708605063189,-500.0,0.00033698,4]
[314874814,1708605063199,-661.99,0.00033698,4]
[314874815,1708605063208,-697.17,0.00033698,4]
[314874816,1708605063218,-827.6,0.00033698,4]
[314874817,1708605063228,-507.9,0.00033698,4]
[314874818,1708605063238,-576.22,0.00033698,4]
[314874819,1708605063247,-781.48,0.00033698,4]
[314874820,1708605063257,-500.0,0.00033698,4]
[314874821,1708605063266,-1118.85,0.00033698,4]
[314874822,1708605063275,-500.0,0.00033698,4]
[314874823,1708605063285,-500.0,0.00033698,4]
[314874824,1708605063295,-579.41302209,0.00033698,4]
[314874825,1708605063304,-727.09,0.00033698,4]
[314874826,1708605063313,-500.0,0.00033698,4]
[314874827,1708605063322,-500.0,0.00033698,4]
[314874828,1708605063331,-221.39354922,0.00033698,4]
[314874829,1708605063341,-500.0,0.00033698,4]
[314874830,1708605063350,-500.0,0.00033698,4]
[314874831,1708605063359,-500.0,0.00033698,4]
[314874832,1708605063368,-789.75,0.00033698,4]
[314874833,1708605063377,-500.0,0.00033698,4]
[314874834,1708605063387,-500.0,0.00033698,4]
[314874835,1708605063396,-500.0,0.00033698,4]
[314874836,1708605063405,-500.0,0.00033698,4]
[314874837,1708605063414,-607.79,0.00033698,4]
[314874838,1708605063423,-500.0,0.00033698,4]
[314874839,1708605063433,-964.18,0.00033698,4]